bitfinex/quotes_BTCUSD_20241111
["timestamp","ask_amount","ask_price","bid_price","bid_amount"]
[1731312734018,0.38039668,81260.0,81259.0,0.001686]
[1731312734466,0.5112563,81260.0,81259.0,0.001686]
[1731312734641,0.37539668,81260.0,81259.0,0.001686]
[1731312734840,0.43560256,81260.0,81259.0,0.001686]
[1731312735055,0.51625468,81260.0,81259.0,0.001686]
[1731312735262,0.71580508,81260.0,81259.0,0.001686]
[1731312735513,0.73606361,81260.0,81259.0,0.001686]
[1731312735812,0.64419689,81260.0,81259.0,0.001686]
[1731312736094,0.64421019,81260.0,81259.0,0.001686]
[1731312736299,0.72281019,81260.0,81259.0,0.001686]
[1731312736470,0.82633169,81260.0,81259.0,0.001686]
[1731312737632,0.78418993,81260.0,81259.0,0.001686]
[1731312738417,0.89461232,81260.0,81259.0,0.001686]
[1731312739397,0.78418993,81260.0,81259.0,0.001686]
[1731312741285,0.55464772,81260.0,81259.0,0.001686]
[1731312741533,0.66509752,81260.0,81259.0,0.001686]
[1731312741680,0.55464772,81260.0,81259.0,0.001686]
[1731312742263,0.55664772,81260.0,81259.0,0.001686]
[1731312743067,0.57964772,81260.0,81259.0,0.001686]
[1731312743288,0.55664772,81260.0,81259.0,0.001686]
[1731312743492,0.55464772,81260.0,81259.0,0.001686]
[1731312743901,0.55664772,81260.0,81259.0,0.001686]
[1731312744463,0.55749072,81260.0,81259.0,0.001686]
[1731312744886,0.55617372,81260.0,81259.0,0.001686]
[1731312745478,1.36338066,81260.0,81259.0,0.001686]
[1731312745681,1.48760585,81260.0,81259.0,0.001686]
[1731312745883,1.3212389,81260.0,81259.0,0.001686]
[1731312746896,1.26147372,81260.0,81259.0,0.001686]
[1731312747100,1.25947372,81260.0,81259.0,0.001686]
[1731312747307,1.23647372,81260.0,81259.0,0.001686]
[1731312747486,1.24247372,81260.0,81259.0,0.001686]
[1731312747689,1.24047372,81260.0,81259.0,0.001686]
[1731312747915,1.23847372,81260.0,81259.0,0.001686]
[1731312748112,1.23947372,81260.0,81259.0,0.001686]
[1731312749222,1.23847372,81260.0,81259.0,0.001686]
[1731312749423,1.26147372,81260.0,81259.0,0.001686]
[1731312750195,1.33362727,81260.0,81259.0,0.001686]
[1731312750337,1.22315556,81260.0,81259.0,0.001686]
[1731312750531,1.26151252,81260.0,81259.0,0.001686]
[1731312750725,0.57921252,81260.0,81259.0,0.001686]
[1731312752050,0.65133198,81260.0,81259.0,0.001686]
[1731312752248,0.64933291,81260.0,81259.0,0.001686]
[1731312752557,0.53885556,81260.0,81259.0,0.001686]
[1731312752779,0.64933532,81260.0,81259.0,0.001686]
[1731312753016,0.53885556,81260.0,81259.0,0.001686]
[1731312753230,0.64933566,81260.0,81259.0,0.001686]
[1731312753419,0.53885556,81260.0,81259.0,0.001686]
[1731312753661,0.53385556,81260.0,81259.0,0.001686]
[1731312754418,0.53885556,81260.0,81259.0,0.001686]
[1731312754814,0.53385556,81260.0,81259.0,0.001686]
[1731312755231,0.53885556,81260.0,81259.0,0.001686]
[1731312755614,0.53385556,81260.0,81259.0,0.001686]
[1731312756578,0.53885556,81260.0,81259.0,0.001686]
[1731312756789,0.66442348,81260.0,81259.0,0.001686]
[1731312756997,0.59229933,81260.0,81259.0,0.001686]
[1731312757916,0.55394338,81260.0,81259.0,0.001686]
[1731312758774,0.59229947,81260.0,81259.0,0.001686]
[1731312759409,0.135064,81258.0,81257.0,0.001686]
[1731312759624,0.72911646,81258.0,81257.0,0.001686]
[1731312760288,0.70111646,81258.0,81257.0,0.001686]
[1731312760526,0.48993909,81258.0,81257.0,0.001686]
[1731312761108,0.66776037,81258.0,81257.0,0.001686]
[1731312762595,0.79370258,81258.0,81257.0,0.001686]
[1731312763280,0.90419396,81258.0,81257.0,0.001686]
[1731312763486,0.89802093,81258.0,81257.0,0.001686]
[1731312763638,0.85506849,81258.0,81257.0,0.001686]
[1731312764448,0.97941311,81258.0,81257.0,0.001686]
[1731312764648,0.85510147,81258.0,81257.0,0.001686]
[1731312766596,0.97941311,81258.0,81257.0,0.001686]
[1731312767812,0.85510147,81258.0,81257.0,0.001686]
[1731312768591,0.123093,81239.0,81238.0,0.18438505]
[1731312768812,0.28585193,81239.0,81238.0,0.18438505]
[1731312769013,0.123108,81229.0,81228.0,0.01953305]
[1731312769218,0.24905021,81229.0,81228.0,0.02043305]
[1731312769426,0.12594221,81229.0,81228.0,0.02043305]
[1731312769699,0.12594221,81229.0,81228.0,0.03478756]
[1731312769874,0.123099,81236.0,81231.0,0.123104]
[1731312770022,0.03681683,81243.0,81231.0,0.0009]
[1731312770023,0.12594221,81235.0,81231.0,0.0009]
[1731312770272,0.12594221,81235.0,81231.0,0.124004]
[1731312770613,0.12594221,81235.0,81232.0,0.123103]
[1731312770768,0.12594221,81235.0,81232.0,0.124003]
[1731312770973,0.12594221,81235.0,81234.0,0.123101]
[1731312771317,0.12594221,81235.0,81234.0,0.0009]
[1731312771677,0.12594221,81235.0,81234.0,0.0786]
[1731312771678,0.24904121,81235.0,81234.0,0.0786]
[1731312772280,0.12594221,81235.0,81234.0,0.0786]
[1731312773694,0.24904121,81235.0,81234.0,0.0786]
[1731312775505,0.12594221,81235.0,81234.0,0.0786]
[1731312775725,0.18438505,81246.0,81235.0,0.246199]
[1731312775982,0.123093,81240.0,81234.0,0.0786]
[1731312776185,0.12594221,81239.0,81234.0,0.0786]
[1731312776753,0.123098,81236.0,81234.0,0.0786]
[1731312776956,0.12594221,81239.0,81236.0,0.123097]
[1731312777162,0.12594221,81239.0,81234.0,0.447901]
[1731312777359,0.12594221,81239.0,81235.0,0.123098]
[1731312777621,0.12594221,81239.0,81234.0,0.0786]
[1731312778020,0.123099,81235.0,81234.0,0.0786]
[1731312778319,0.24904121,81235.0,81234.0,0.0009]
[1731312780192,0.24904121,81235.0,81234.0,0.002586]
[1731312780747,0.28587179,81235.0,81234.0,0.002586]
[1731312781142,0.24904121,81235.0,81234.0,0.002586]
[1731312781343,0.28587179,81235.0,81234.0,0.002586]
[1731312781577,0.28589208,81235.0,81234.0,0.002586]
[1731312782028,0.24904121,81235.0,81234.0,0.002586]
[1731312782525,0.30428708,81235.0,81234.0,0.002586]
[1731312783168,0.24904121,81235.0,81234.0,0.002586]
[1731312783520,0.39553027,81235.0,81234.0,0.002586]
[1731312783719,0.32857742,81235.0,81234.0,0.002586]
[1731312783929,0.32857681,81235.0,81234.0,0.002586]
[1731312787018,0.40930486,81235.0,81234.0,0.002586]
[1731312787760,0.41430486,81235.0,81234.0,0.002586]
[1731312789707,0.24866701,81235.0,81234.0,0.002586]
[1731312792677,0.24951001,81235.0,81234.0,0.002586]
[1731312794052,0.33261001,81235.0,81234.0,0.002586]
[1731312794481,0.24951001,81235.0,81234.0,0.002586]
[1731312799564,0.25151001,81235.0,81234.0,0.002586]
[1731312799778,0.55911144,81235.0,81234.0,0.002586]
[1731312799982,0.38546923,81235.0,81234.0,0.002586]
[1731312800220,0.38546923,81235.0,81234.0,0.001686]
[1731312800434,0.4775443,81235.0,81234.0,0.001686]
[1731312800781,0.38546923,81235.0,81234.0,0.001686]
[1731312803446,0.45913787,81235.0,81234.0,0.001686]
[1731312803676,0.38546923,81235.0,81234.0,0.001686]
[1731312804463,0.47755888,81235.0,81234.0,0.001686]
[1731312804866,0.38546923,81235.0,81234.0,0.001686]
[1731312805729,0.45414363,81235.0,81234.0,0.001686]
[1731312805956,0.38046923,81235.0,81234.0,0.001686]
[1731312806172,0.29976342,81235.0,81234.0,0.001686]
[1731312806920,0.38049382,81235.0,81234.0,0.001686]
[1731312807122,0.38049541,81235.0,81234.0,0.001686]
[1731312807495,0.45416981,81235.0,81234.0,0.001686]
[1731312808008,0.24451001,81235.0,81234.0,0.001686]
[1731312808214,0.38050914,81235.0,81234.0,0.001686]
[1731312809376,0.45419332,81235.0,81234.0,0.001686]
[1731312810162,0.45919332,81235.0,81234.0,0.001686]
[1731312810633,0.49018608,81235.0,81234.0,0.001686]
[1731312810851,0.46830914,81235.0,81234.0,0.001686]
[1731312811030,0.47030914,81235.0,81234.0,0.001686]
[1731312812147,0.46830914,81235.0,81234.0,0.001686]
[1731312813003,0.72776416,81235.0,81234.0,0.001686]
[1731312814066,0.61332237,81235.0,81234.0,0.001686]
[1731312814329,0.56832237,81235.0,81234.0,0.001686]
[1731312814519,0.38052237,81235.0,81234.0,0.001686]
[1731312814938,0.39204657,81235.0,81234.0,0.001686]
[1731312815141,0.46572509,81235.0,81234.0,0.001686]
[1731312815313,0.45420089,81235.0,81234.0,0.001686]
[1731312815942,0.38052237,81235.0,81234.0,0.001686]
[1731312816867,0.56990742,81235.0,81234.0,0.001686]
[1731312817096,0.38552237,81235.0,81234.0,0.001686]
[1731312817271,0.47762787,81235.0,81234.0,0.001686]
[1731312817601,0.38552237,81235.0,81234.0,0.001686]
[1731312817734,0.47762628,81235.0,81234.0,0.001686]
[1731312817938,0.38551624,81235.0,81234.0,0.001686]
[1731312818376,0.59094779,81235.0,81234.0,0.001686]
[1731312819402,0.60247289,81235.0,81234.0,0.001686]
[1731312822049,0.60447289,81235.0,81234.0,0.001686]
[1731312822225,0.60247289,81235.0,81234.0,0.001686]
[1731312822747,0.49704134,81235.0,81234.0,0.001686]
[1731312823288,0.49904134,81235.0,81234.0,0.001686]
[1731312823524,0.49704134,81235.0,81234.0,0.001686]
[1731312824484,0.58144134,81235.0,81234.0,0.001686]
[1731312825299,0.69197339,81235.0,81234.0,0.001686]
[1731312825451,0.81791432,81235.0,81234.0,0.001686]
[1731312826351,0.7457957,81235.0,81234.0,0.001686]
[1731312826748,0.7737957,81235.0,81234.0,0.001686]
[1731312828026,0.94512414,81235.0,81234.0,0.001686]
[1731312829331,0.94312414,81235.0,81234.0,0.001686]
[1731312829565,0.94012414,81235.0,81234.0,0.001686]
[1731312829895,0.94512414,81235.0,81234.0,0.001686]
[1731312830311,0.99252414,81235.0,81234.0,1e-06]
[1731312830729,1.11687269,81235.0,81234.0,1e-06]
[1731312830928,0.99252414,81235.0,81234.0,1e-06]
[1731312831556,0.9909757,81235.0,81234.0,1e-06]
[1731312831757,0.81718193,81235.0,81234.0,1e-06]
[1731312832193,0.81218193,81235.0,81234.0,1e-06]
[1731312832393,0.7757685,81235.0,81234.0,1e-06]
[1731312832832,0.81215734,81235.0,81234.0,1e-06]
[1731312833213,0.81215734,81235.0,81234.0,1e-06]
[1731312833414,0.81715734,81235.0,81234.0,1e-06]
[1731312833717,0.94309955,81235.0,81234.0,1e-06]
[1731312833921,0.81715734,81235.0,81234.0,1e-06]
[1731312834049,0.81915734,81235.0,81234.0,1e-06]
[1731312834604,0.81215734,81235.0,81234.0,1e-06]
[1731312834960,0.67615111,81235.0,81234.0,1e-06]
[1731312835560,0.81718011,81235.0,81234.0,1e-06]
[1731312835984,0.89499773,81235.0,81234.0,1e-06]
[1731312836336,0.53545167,81235.0,81234.0,1e-06]
[1731312837278,0.39942267,81235.0,81234.0,1e-06]
[1731312838204,0.40042267,81235.0,81234.0,1e-06]
[1731312838833,0.51288339,81235.0,81234.0,1e-06]
[1731312838984,0.51188339,81235.0,81234.0,1e-06]
[1731312839387,0.6378256,81235.0,81234.0,1e-06]
[1731312840007,0.59943676,81235.0,81234.0,1e-06]
[1731312840610,0.005,81229.0,81228.0,0.001257]
[1731312840835,0.26557403,81229.0,81228.0,0.001257]
[1731312841053,0.51406083,81229.0,81228.0,0.001257]
[1731312841923,0.39660011,81229.0,81228.0,0.001257]
[1731312842135,0.48872252,81229.0,81228.0,0.001257]
[1731312842562,0.39660011,81229.0,81228.0,0.001257]
[1731312844079,0.47029679,81229.0,81228.0,0.001257]
[1731312844311,0.39660011,81229.0,81228.0,0.001257]
[1731312844768,0.13746603,81229.0,81228.0,0.080757]
[1731312844945,0.01152382,81232.0,81231.0,0.123105]
[1731312845117,0.12594221,81232.0,81231.0,0.123105]
[1731312845519,0.000843,81235.0,81234.0,0.123101]
[1731312845781,0.12678521,81235.0,81231.0,0.123104]
[1731312845989,0.12594221,81234.0,81228.0,0.127757]
[1731312846192,0.12594221,81234.0,81230.0,0.123106]
[1731312846364,0.12594221,81234.0,81232.0,0.123103]
[1731312846574,0.12594221,81234.0,81230.0,0.123106]
[1731312846776,0.12594221,81234.0,81228.0,0.250865]
[1731312847576,0.12594221,81234.0,81230.0,0.123107]
[1731312847744,0.12594221,81234.0,81233.0,0.123102]
[1731312848280,0.12594221,81234.0,81230.0,0.246214]
[1731312848524,0.12594221,81234.0,81233.0,0.123102]
[1731312848717,0.12594221,81234.0,81230.0,0.246214]
[1731312848883,0.12594221,81234.0,81232.0,0.123102]
[1731312849077,0.12594221,81234.0,81230.0,0.123105]
[1731312849282,0.12594221,81234.0,81231.0,0.123104]
[1731312849521,0.12594221,81234.0,81229.0,0.246217]
[1731312849681,0.12594221,81234.0,81231.0,0.123105]
[1731312850124,0.12594221,81234.0,81229.0,0.246217]
[1731312850385,0.12594221,81234.0,81233.0,0.123102]
[1731312850898,0.12594221,81234.0,81231.0,0.123947]
[1731312851708,0.12594221,81234.0,81231.0,0.000843]
[1731312852034,0.12594221,81234.0,81232.0,0.123103]
[1731312852229,0.12594221,81234.0,81231.0,0.000843]
[1731312853037,0.12594221,81234.0,81233.0,0.123102]
[1731312854616,0.000843,81235.0,81234.0,0.123101]
[1731312859660,0.000843,81235.0,81234.0,0.25446266]
[1731312859840,0.000843,81235.0,81234.0,0.35946266]
[1731312860062,0.000843,81235.0,81234.0,0.362401]
[1731312860274,0.000843,81235.0,81234.0,0.51134321]
[1731312860473,0.000843,81235.0,81234.0,0.51334321]
[1731312860707,0.000843,81235.0,81234.0,0.51134321]
[1731312862188,0.000843,81235.0,81234.0,0.51449279]
[1731312862621,0.000843,81235.0,81234.0,0.68578547]
[1731312862832,0.000843,81235.0,81234.0,0.36555058]
[1731312863448,0.000843,81235.0,81234.0,0.36055058]
[1731312864120,0.000843,81235.0,81234.0,0.36555058]
[1731312864320,0.000843,81235.0,81234.0,0.38855058]
[1731312867599,0.000843,81235.0,81234.0,0.36555058]
[1731312869917,0.000843,81235.0,81234.0,0.38855058]
[1731312870362,0.000843,81235.0,81234.0,0.51449279]
[1731312878181,0.000843,81235.0,81234.0,0.36055058]
[1731312878406,0.000843,81235.0,81234.0,0.23665058]
[1731312880426,0.123942,81235.0,81234.0,0.00854958]
[1731312880630,0.123942,81235.0,81234.0,0.0054]
[1731312880631,0.33288421,81235.0,81234.0,0.0054]
[1731312881051,0.123104,81232.0,81231.0,0.000843]
[1731312881267,0.24904621,81232.0,81231.0,0.000843]
[1731312885672,0.27412296,81232.0,81231.0,0.000843]
[1731312887289,0.24904621,81232.0,81231.0,0.000843]
[1731312893099,0.37654621,81232.0,81231.0,0.000843]
[1731312893871,0.37454621,81232.0,81231.0,0.000843]
[1731312894390,0.38602334,81232.0,81231.0,0.000843]
[1731312896438,0.37454621,81232.0,81231.0,0.000843]
[1731312896882,0.38602161,81232.0,81231.0,0.000843]
[1731312897087,0.38686461,81232.0,81231.0,0.000843]
[1731312897598,0.38686418,81232.0,81231.0,0.000843]
[1731312897801,0.37538921,81232.0,81231.0,0.000843]
[1731312898017,0.38686418,81232.0,81231.0,0.000843]
[1731312898214,0.37538921,81232.0,81231.0,0.000843]
[1731312899484,0.000843,81232.0,81231.0,0.000843]
[1731312899745,0.000843,81232.0,81231.0,0.123948]
[1731312899917,0.000843,81232.0,81231.0,0.2124099]
[1731312900196,0.000843,81232.0,81231.0,0.215348]
[1731312900415,0.000843,81232.0,81231.0,0.26410946]
[1731312900642,0.000843,81232.0,81231.0,0.261648]
[1731312902434,0.000843,81232.0,81231.0,0.134348]
[1731312902649,0.000843,81232.0,81231.0,0.006243]
[1731312902871,0.000843,81232.0,81231.0,0.134348]
[1731312905224,0.000843,81232.0,81231.0,0.006243]
[1731312905441,0.000843,81232.0,81231.0,0.134348]
[1731312906317,0.000843,81232.0,81231.0,0.129348]
[1731312907399,0.000843,81232.0,81231.0,0.006243]
[1731312908185,0.24988921,81232.0,81231.0,0.006243]
[1731312909080,0.33218921,81232.0,81231.0,0.006243]
[1731312909226,0.37748921,81232.0,81231.0,0.000843]
[1731312909428,0.49501536,81232.0,81231.0,0.000843]
[1731312909659,0.39099262,81232.0,81231.0,0.000843]
[1731312909986,0.38899262,81232.0,81231.0,0.000843]
[1731312910813,0.37948921,81232.0,81231.0,0.000843]
[1731312911030,0.39099596,81232.0,81231.0,0.000843]
[1731312911764,0.39599596,81232.0,81231.0,0.000843]
[1731312912078,0.4827606,81232.0,81231.0,0.000843]
[1731312912284,0.39599596,81232.0,81231.0,0.000843]
[1731312912469,0.38448921,81232.0,81231.0,0.000843]
[1731312913626,0.48948921,81232.0,81231.0,0.000843]
[1731312914076,0.54458779,81232.0,81231.0,0.000843]
[1731312914461,0.48948921,81232.0,81231.0,0.000843]
[1731312914663,0.50098814,81232.0,81231.0,0.000843]
[1731312915014,0.62693035,81232.0,81231.0,0.000843]
[1731312916069,0.61543142,81232.0,81231.0,0.000843]
[1731312917480,0.48948921,81232.0,81231.0,0.000843]
[1731312918209,0.54457241,81232.0,81231.0,0.000843]
[1731312918378,0.48948921,81232.0,81231.0,0.000843]
[1731312919220,0.54457241,81232.0,81231.0,0.000843]
[1731312919434,0.55606238,81232.0,81231.0,0.000843]
[1731312919593,0.50097918,81232.0,81231.0,0.000843]
[1731312919795,0.49597918,81232.0,81231.0,0.000843]
[1731312919995,0.50097918,81232.0,81231.0,0.000843]
[1731312920240,0.63657961,81232.0,81231.0,0.000843]
[1731312920667,0.54458684,81232.0,81231.0,0.000843]
[1731312920871,0.53758684,81232.0,81231.0,0.000843]
[1731312921203,0.54258684,81232.0,81231.0,0.000843]
[1731312921641,0.53758684,81232.0,81231.0,0.000843]
[1731312922028,0.54258684,81232.0,81231.0,0.000843]
[1731312922316,0.61543142,81232.0,81231.0,0.000843]
[1731312923271,0.69360488,81232.0,81231.0,0.000843]
[1731312923472,0.62516061,81232.0,81231.0,0.000843]
[1731312923850,0.61816061,81232.0,81231.0,0.000843]
[1731312924051,0.12678521,81232.0,81231.0,0.000843]
[1731312924255,0.12678521,81232.0,81231.0,0.123948]
[1731312925937,0.000843,81232.0,81231.0,0.123948]
[1731312926305,0.000843,81232.0,81231.0,0.12640979]
[1731312926624,0.000843,81232.0,81231.0,0.260248]
[1731312926820,0.000843,81232.0,81231.0,0.26770958]
[1731312927046,0.000843,81232.0,81231.0,0.265248]
[1731312928087,0.000843,81232.0,81231.0,0.260248]
[1731312929059,0.000843,81232.0,81231.0,0.43154068]
[1731312931206,0.000843,81232.0,81231.0,0.260248]
[1731312931422,0.000843,81232.0,81231.0,0.26270965]
[1731312932627,0.000843,81232.0,81231.0,0.260248]
[1731312933684,0.000843,81232.0,81231.0,0.55954068]
[1731312937419,0.000843,81232.0,81231.0,0.53654068]
[1731312939543,0.000843,81232.0,81231.0,0.55954068]
[1731312943523,0.000843,81232.0,81231.0,0.53654068]
[1731312946096,0.000843,81232.0,81231.0,0.66248289]
[1731312946326,0.000843,81232.0,81231.0,0.66448289]
[1731312946988,0.000843,81232.0,81231.0,0.66248289]
[1731312948713,1e-06,81235.0,81234.0,0.258101]
[1731312948922,0.18438505,81244.0,81243.0,0.258087]
[1731312949116,0.18438505,81244.0,81243.0,0.38942921]
[1731312949364,0.000843,81260.0,81253.0,0.133072]
[1731312949562,0.000843,81260.0,81253.0,0.40976468]
[1731312949788,0.000843,81260.0,81258.0,0.128064]
[1731312949973,0.000843,81260.0,81258.0,0.13592488]
[1731312950174,0.000843,81260.0,81258.0,0.14092488]
[1731312950533,0.000843,81260.0,81258.0,0.138464]
[1731312952359,0.000843,81260.0,81258.0,0.14092473]
[1731312954775,0.000843,81260.0,81258.0,0.138464]
[1731312956529,0.000843,81260.0,81258.0,0.14160311]
[1731312966430,0.000843,81260.0,81258.0,0.24406383]
[1731312968168,0.000843,81260.0,81258.0,0.37000604]
[1731312968323,0.000843,81260.0,81258.0,0.36754532]
[1731312970522,0.000843,81260.0,81258.0,0.52004532]
[1731312970693,0.000843,81260.0,81259.0,0.256063]
[1731312970907,0.000843,81260.0,81259.0,0.38986575]
[1731312971103,0.000843,81260.0,81259.0,0.38740521]
[1731312973637,0.000843,81260.0,81259.0,0.36440521]
[1731312974520,0.000843,81260.0,81259.0,0.138463]
[1731312975869,0.000843,81260.0,81259.0,0.238463]
[1731312976039,0.000843,81260.0,81259.0,0.24092375]
[1731312977527,0.000843,81260.0,81259.0,0.238463]
[1731312977737,0.000843,81260.0,81259.0,0.128463]
[1731312977925,0.076843,81260.0,81259.0,0.128463]
[1731312978374,0.076843,81260.0,81259.0,0.0054]
[1731312978785,0.076843,81260.0,81259.0,0.128463]
[1731312981646,0.000843,81260.0,81259.0,0.128463]
[1731312982106,0.000843,81260.0,81259.0,0.30975568]
[1731312983300,0.000843,81260.0,81259.0,0.43569789]
[1731312983647,0.000843,81260.0,81259.0,0.56069789]
[1731312983778,0.000843,81270.0,81259.0,0.56069789]
[1731312983779,0.000843,81270.0,81269.0,0.235048]
[1731312984000,0.000843,81270.0,81269.0,0.56314308]
[1731312984221,0.000843,81270.0,81269.0,0.56068289]
[1731312984673,0.000843,81270.0,81269.0,0.55868289]
[1731312987160,0.000843,81270.0,81269.0,0.56175321]
[1731312988959,0.000843,81270.0,81269.0,0.412811]
[1731312989171,0.000843,81270.0,81269.0,0.24151832]
[1731312989759,0.000843,81270.0,81269.0,0.23651832]
[1731312989962,0.000843,81270.0,81269.0,0.24151832]
[1731312990386,0.000843,81270.0,81269.0,0.23651832]
[1731312990697,0.000843,81270.0,81269.0,0.0054]
[1731312990901,0.12678521,81270.0,81269.0,0.0054]
[1731312991018,0.12678521,81270.0,81261.0,0.246118]
[1731312991019,0.24983221,81270.0,81263.0,0.123055]
[1731312991219,0.24899021,81269.0,81263.0,0.123055]
[1731312991657,0.24899021,81269.0,81264.0,0.123055]
[1731312991866,0.123049,81268.0,81262.0,0.123058]
[1731312992871,0.0752,81264.0,81259.0,0.001684]
[1731312993071,0.123059,81262.0,81259.0,0.001684]
[1731312993901,0.0752,81264.0,81259.0,0.001684]
[1731312994103,0.198256,81264.0,81259.0,0.001684]
[1731312994304,0.0752,81264.0,81259.0,0.001684]
[1731312994478,0.0752,81264.0,81261.0,0.12306]
[1731312994678,0.0752,81264.0,81259.0,0.001684]
[1731312994874,0.0752,81264.0,81262.0,0.123057]
[1731312995081,0.0752,81264.0,81260.0,0.123061]
[1731312995880,0.0752,81264.0,81261.0,0.123059]
[1731312996115,0.0752,81264.0,81259.0,0.124747]
[1731312996566,0.198255,81264.0,81259.0,0.124747]
[1731312996770,0.123061,81260.0,81259.0,0.007504]
[1731312996975,0.33060321,81260.0,81259.0,0.001684]
[1731312997147,0.38708491,81260.0,81259.0,0.001684]
[1731313000109,0.38908491,81260.0,81259.0,0.001684]
[1731313000774,0.38708491,81260.0,81259.0,0.001684]
[1731313001341,0.37560321,81260.0,81259.0,0.001684]
[1731313003248,0.25254221,81260.0,81259.0,0.001684]
[1731313003454,0.0796,81260.0,81259.0,0.001684]
[1731313003716,0.078442,81268.0,81259.0,0.001684]
[1731313003914,0.000842,81268.0,81267.0,0.123051]
[1731313004358,0.000842,81268.0,81267.0,0.128051]
[1731313004759,0.000842,81268.0,81267.0,0.133871]
[1731313004907,0.000842,81268.0,81267.0,0.128871]
[1731313005318,0.000842,81268.0,81267.0,0.123051]
[1731313005677,0.000842,81268.0,81262.0,0.246117]
[1731313005882,0.000842,81268.0,81259.0,0.001684]
[1731313006120,0.000842,81268.0,81267.0,0.123051]
[1731313007006,0.000842,81268.0,81267.0,0.128871]
[1731313007455,0.000842,81268.0,81267.0,0.123051]
[1731313008626,0.000842,81268.0,81243.0,0.17129268]
[1731313008627,0.000842,81268.0,81261.0,0.005]
[1731313008948,0.075942,81268.0,81264.0,0.123054]
[1731313009232,0.075942,81268.0,81267.0,0.123051]
[1731313009445,0.000842,81268.0,81267.0,0.128871]
[1731313009591,0.000842,81268.0,81267.0,0.123051]
[1731313009954,0.000842,81268.0,81267.0,0.12551174]
[1731313010967,0.000842,81268.0,81265.0,0.246107]
[1731313011328,0.000842,81268.0,81265.0,0.251927]
[1731313011534,0.000842,81268.0,81265.0,0.00582]
[1731313011535,0.123052,81266.0,81265.0,0.00582]
[1731313011730,0.000842,81268.0,81265.0,0.128873]
[1731313013731,0.000842,81268.0,81265.0,0.00582]
[1731313014194,0.000842,81268.0,81267.0,0.123051]
[1731313014819,0.000842,81268.0,81267.0,0.13133166]
[1731313015175,0.000842,81268.0,81267.0,0.133871]
[1731313015419,0.000842,81268.0,81267.0,0.13633145]
[1731313016123,0.000842,81268.0,81267.0,0.133871]
[1731313017101,0.000842,81268.0,81267.0,0.233871]
[1731313018848,0.000842,81268.0,81267.0,0.228871]
[1731313020862,0.000842,81268.0,81267.0,0.23633151]
[1731313021360,0.000842,81268.0,81267.0,0.36727372]
[1731313021551,0.000842,81268.0,81267.0,0.38781321]
[1731313023625,0.000842,81268.0,81267.0,0.228871]
[1731313023843,0.000842,81268.0,81267.0,0.128871]
[1731313024475,0.12678421,81268.0,81267.0,0.00582]
[1731313024621,0.12678421,81268.0,81267.0,0.128871]
[1731313025138,0.14973068,81268.0,81267.0,0.123051]
[1731313025560,0.000842,81268.0,81267.0,0.123051]
[1731313026874,0.000842,81268.0,81267.0,0.128871]
[1731313028415,0.000842,81268.0,81265.0,0.123053]
[1731313028685,0.123052,81266.0,81261.0,0.123059]
[1731313028836,0.000842,81268.0,81259.0,0.001684]
[1731313029044,0.123892,81268.0,81262.0,0.123058]
[1731313029231,0.14684625,81268.0,81262.0,0.123058]
[1731313029434,0.12306,81261.0,81259.0,0.001684]
[1731313029635,0.14601025,81264.0,81259.0,0.001684]
[1731313029918,0.02295425,81263.0,81259.0,0.001684]
[1731313030133,0.12306,81261.0,81260.0,0.007504]
[1731313030315,0.02295425,81261.0,81260.0,0.007504]
[1731313030699,0.14601425,81261.0,81260.0,0.007504]
[1731313030900,0.02295425,81261.0,81260.0,0.007504]
[1731313031292,0.14601425,81261.0,81260.0,0.007504]
[1731313031502,0.02295425,81261.0,81260.0,0.007504]
[1731313031908,0.123059,81262.0,81260.0,0.007504]
[1731313032110,0.0229816,81261.0,81260.0,0.007504]
[1731313032687,0.1460416,81261.0,81260.0,0.007504]
[1731313032912,0.2214416,81261.0,81260.0,0.007504]
[1731313033759,0.39498381,81261.0,81260.0,0.007504]
[1731313034199,0.39498381,81261.0,81260.0,0.001684]
[1731313034628,0.002,81249.0,81236.0,0.18438505]
[1731313034867,0.27200281,81248.0,81247.0,0.18438505]
[1731313035094,0.14892381,81248.0,81236.0,0.18438505]
[1731313035347,0.123096,81237.0,81236.0,0.18438505]
[1731313035574,0.123098,81236.0,81235.0,0.001686]
[1731313036022,0.123098,81236.0,81235.0,0.007506]
[1731313036246,0.14607173,81236.0,81235.0,0.007506]
[1731313036452,0.123098,81236.0,81235.0,0.007506]
[1731313036879,0.14607173,81236.0,81235.0,0.007506]
[1731313037094,0.27201394,81236.0,81235.0,0.007506]
[1731313037308,0.35071394,81236.0,81235.0,0.007506]
[1731313037517,0.35071394,81236.0,81235.0,0.001686]
[1731313039371,0.35271394,81236.0,81235.0,0.001686]
[1731313039831,0.35265273,81236.0,81235.0,0.001686]
[1731313040729,0.35065273,81236.0,81235.0,0.001686]
[1731313041365,0.22471052,81236.0,81235.0,0.001686]
[1731313041647,0.0787,81236.0,81235.0,0.001686]
[1731313042258,0.201798,81236.0,81235.0,0.001686]
[1731313048030,0.32774021,81236.0,81235.0,0.001686]
[1731313049111,0.53222981,81236.0,81235.0,0.001686]
[1731313049372,0.53722981,81236.0,81235.0,0.001686]
[1731313049602,0.50603289,81236.0,81235.0,0.001686]
[1731313051347,0.50912805,81236.0,81235.0,0.001686]
[1731313051676,0.33583537,81236.0,81235.0,0.001686]
[1731313051998,0.32774021,81236.0,81235.0,0.001686]
[1731313052195,0.33274021,81236.0,81235.0,0.001686]
[1731313053554,0.32774021,81236.0,81235.0,0.001686]
[1731313056003,0.33474021,81236.0,81235.0,0.001686]
[1731313056583,0.33974021,81236.0,81235.0,0.001686]
[1731313056718,0.125104,81232.0,81231.0,0.000843]
[1731313056920,0.25104621,81232.0,81231.0,0.000843]
[1731313057586,0.27397195,81232.0,81231.0,0.000843]
[1731313058047,0.27197195,81232.0,81231.0,0.000843]
[1731313058270,0.27397195,81232.0,81231.0,0.000843]
[1731313058448,0.25104621,81232.0,81231.0,0.000843]
[1731313058830,0.25407907,81232.0,81231.0,0.000843]
[1731313059445,0.37947907,81232.0,81231.0,0.000843]